bitfinex-derivatives/quotes_SOLF0:USTF0_20250603
["timestamp","ask_amount","ask_price","bid_price","bid_amount"]
[1748986942826,5.15568074,155.78,155.66,40.0596]
[1748986943022,2.1346,155.77,155.66,40.0596]
[1748986943229,6.4179,155.71,155.7,0.04629082]
[1748986946327,6.4176,155.72,155.7,0.04629082]
[1748986946530,0.04371239,155.73,155.7,0.04629082]
[1748986947029,0.04371239,155.73,155.71,6.4178]
[1748986949035,0.04371239,155.73,155.7,0.04629082]
[1748986949924,6.4179,155.71,155.7,0.04629082]
[1748986950230,0.04371239,155.73,155.62,2.1728]
[1748986950231,33.64,155.72,155.62,2.1728]
[1748986950429,2.0897,155.71,155.56,38.0037]
[1748986950636,126.76,155.7,155.56,38.0037]
[1748986951035,126.76,155.7,155.58,6.4231]
[1748986951036,6.422,155.62,155.58,6.4231]
[1748986951235,6.422,155.62,155.61,0.04509982]
[1748986951430,6.46303708,155.62,155.61,0.04509982]
[1748986951625,0.04103708,155.62,155.61,0.04509982]
[1748986951829,33.64,155.72,155.61,6.46509982]
[1748986952033,33.64,155.72,155.6,33.64]
[1748986952342,6.4177,155.72,155.6,33.64]
[1748986952641,588.34,155.75,155.6,33.64]
[1748986952931,0.04719175,155.69,155.66,0.04548686]
[1748986953733,6.4194,155.68,155.66,0.04548686]
[1748986954237,0.04719175,155.69,155.66,0.04548686]
[1748986954238,6.4195,155.67,155.66,0.04548686]
[1748986955438,0.04719175,155.69,155.6,33.64]
[1748986955439,13.88,155.68,155.6,33.64]
[1748986955739,33.64,155.67,155.58,6.423]
[1748986956336,0.04269795,155.64,155.61,0.0460676]
[1748986956638,6.4216,155.62,155.61,0.0460676]
[1748986960643,33.64,155.63,155.51,6.3406]
[1748986960843,2.1231,155.62,155.51,6.3406]
[1748986961044,6.4246,155.55,155.51,6.3406]
[1748986961543,0.04773377,155.55,155.51,0.0491655]
[1748986962050,33.62,155.54,155.51,0.0491655]
[1748986962646,6.4257,155.52,155.51,0.0491655]
[1748986963137,33.62,155.54,155.44,6.2631]
[1748986963339,6.3361,155.53,155.44,6.2631]
[1748986963641,6.4268,155.5,155.44,12.6919]
[1748986963848,33.62,155.5,155.44,6.2631]
[1748986964053,0.04329102,155.49,155.45,0.02992412]
[1748986964740,0.04329102,155.49,155.45,6.45812412]
[1748986964936,0.04329102,155.49,155.45,0.02992412]
[1748986967553,6.4295,155.43,155.36,33.64]
[1748986967947,33.64,155.45,155.36,33.64]
[1748986968543,6.47772845,155.42,155.38,6.4311]
[1748986969250,0.04782845,155.42,155.36,33.64]
[1748986969647,6.47802845,155.42,155.37,6.4317]
[1748986970149,6.47802845,155.42,155.36,33.64]
[1748986970551,0.04782845,155.42,155.36,33.64]
[1748986970944,0.04782845,155.42,155.38,6.4312]
[1748986971343,0.04782845,155.42,155.36,33.64]
[1748986971548,33.64,155.48,155.37,0.0459459]
[1748986971746,6.4281,155.47,155.36,33.64]
[1748986972154,6.4281,155.47,155.42,6.4297]
[1748986972550,6.4281,155.47,155.4,33.64]
[1748986972764,0.04493085,155.46,155.43,6.47228613]
[1748986973255,0.04493085,155.46,155.43,0.04308613]
[1748986973653,6.4295,155.43,155.39,6.431]
[1748986973854,6.4295,155.43,155.36,33.64]
[1748986974049,33.64,155.46,155.36,33.64]
[1748986974250,6.4307,155.4,155.36,33.64]
[1748986974661,6.4721775,155.4,155.36,33.64]
[1748986974858,6.4721775,155.4,155.36,40.0723]
[1748986975056,0.0414775,155.4,155.36,33.64]
[1748986975454,0.0414775,155.4,155.39,6.4311]
[1748986977256,0.0414775,155.4,155.37,2.171]
[1748986977762,0.0414775,155.4,155.39,6.4311]
[1748986978560,0.0414775,155.4,155.37,2.171]
[1748986979160,37.8022,155.49,155.37,8.611]
[1748986979362,4.1422,155.49,155.37,2.171]
[1748986979563,4.1422,155.49,155.44,6.429]
[1748986979958,6.46862774,155.48,155.45,0.04135202]
[1748986980156,6.46862774,155.48,155.45,6.46995202]
[1748986980662,0.04112774,155.48,155.45,6.46995202]
[1748986981765,0.04112774,155.48,155.46,6.4281]
[1748986982660,12.30112774,155.48,155.45,0.04135202]
[1748986982964,6.4282,155.46,155.45,0.04135202]
[1748986987759,5.7336275,155.61,155.45,40.14135202]
[1748986987961,4.2977,155.58,155.48,6.4271]
[1748986988161,4.2977,155.58,155.45,33.66]
[1748986988557,4.2977,155.58,155.46,6.4281]
[1748986988758,0.04474715,155.54,155.5,0.04101883]
[1748986988958,33.70474715,155.54,155.5,0.04101883]
[1748986989560,6.4261,155.51,155.5,0.04101883]
[1748986995071,6.87,155.53,155.5,0.04101883]
[1748986995771,2.2414,155.6,155.5,0.04101883]
[1748986995971,38.98383994,155.64,155.5,2.0466]
[1748986996178,5.10383994,155.64,155.5,2.0466]
[1748986996377,6.4225,155.6,155.57,6.4234]
[1748986996770,6.46677831,155.6,155.57,6.46532172]
[1748986997686,0.04427831,155.6,155.58,6.4232]
[1748986998966,0.04427831,155.6,155.57,0.04192172]
[1748986999169,0.04427831,155.6,155.59,6.4228]
[1748987000373,7.21752229,155.68,155.58,33.88]
[1748987000577,43.14232229,155.69,155.58,35.9556]
[1748987000772,6.4194,155.68,155.58,35.9556]
[1748987001369,0.04927145,155.65,155.61,0.04617414]
[1748987001675,0.04927145,155.65,155.62,33.88]
[1748987001876,0.04927145,155.65,155.64,6.4208]
[1748987002487,0.04927145,155.65,155.62,33.88]
[1748987002775,33.92927145,155.65,155.61,0.04617414]
[1748987002976,134.4291,155.64,155.48,33.88]
[1748987003277,5.12384026,155.63,155.48,33.88]
[1748987003481,6.4252,155.54,155.51,6.4261]
[1748987003775,33.88,155.58,155.48,33.88]
[1748987003975,0.04235325,155.54,155.51,0.04866433]
[1748987004176,0.04235325,155.54,155.51,6.47456433]
[1748987004374,0.04235325,155.54,155.51,0.04866433]
[1748987004770,6.4257,155.52,155.51,0.04866433]
[1748987008273,33.92235325,155.54,155.51,0.04866433]
[1748987008274,0.04235325,155.54,155.51,0.04866433]
[1748987008479,14.97,155.53,155.52,6.4257]
[1748987009170,33.88,155.6,155.51,33.92866433]
[1748987009477,6.4235,155.58,155.53,6.4253]
[1748987009875,6.4239,155.57,155.53,6.4253]
[1748987010076,6.46804645,155.57,155.53,6.47236356]
[1748987010974,6.4242,155.56,155.53,6.47236356]
[1748987011979,6.4242,155.56,155.53,0.04706356]
[1748987013975,6.4242,155.56,155.53,6.47226356]
[1748987023084,6.46784645,155.57,155.54,6.4246]
[1748987023788,6.46784645,155.57,155.55,6.4245]
[1748987023986,0.04414645,155.57,155.55,6.4245]
[1748987024188,0.04414645,155.57,155.53,0.04706356]
[1748987024590,6.4243,155.56,155.53,0.04706356]
[1748987024790,0.04414645,155.57,155.53,6.47206356]
[1748987025187,6.4242,155.56,155.53,6.47206356]
[1748987025990,0.04414645,155.57,155.53,0.04706356]
[1748987026992,6.4249,155.54,155.53,0.04706356]
[1748987042701,6.4275,155.48,155.45,34.2]
[1748987043106,6.4272,155.49,155.46,6.428]
[1748987043308,4.2534,155.53,155.45,34.2]
[1748987043709,0.04942639,155.51,155.49,6.4267]
[1748987043908,0.04942639,155.51,155.47,0.04201526]
[1748987044104,0.04942639,155.51,155.5,6.4265]
[1748987046910,6.4242,155.56,155.53,6.4251]
[1748987047105,11.60196716,155.56,155.53,6.4251]
[1748987047412,6.4242,155.56,155.53,6.4251]
[1748987047805,6.46565455,155.56,155.53,6.46885567]
[1748987048106,0.04145455,155.56,155.54,6.4248]
[1748987048409,0.04145455,155.56,155.53,0.04375567]
[1748987048904,0.04145455,155.56,155.55,6.4245]
[1748987053813,5.455e-05,155.56,155.55,6.4245]
[1748987054110,5.17390803,155.62,155.53,34.24375567]
[1748987054312,5.17390803,155.62,155.53,34.2]
[1748987054708,4.3127,155.63,155.6,6.4221]
[1748987055107,9.542716,155.63,155.6,6.46549541]
[1748987055303,9.54071152,155.63,155.6,6.46549541]
[1748987055902,4.36097141,155.63,155.6,6.46549541]
[1748987056108,9.54071152,155.63,155.6,6.46549541]
[1748987056713,4.36097141,155.63,155.6,0.04339541]
[1748987057310,4.36097141,155.63,155.61,6.4217]
[1748987058212,0.04827141,155.63,155.62,6.4216]
[1748987072425,6.4193,155.68,155.65,6.4202]
[1748987073421,6.46492653,155.68,155.65,6.46648268]
[1748987073628,0.04562653,155.68,155.65,0.04628268]
[1748987074116,6.46492653,155.68,155.65,6.46638268]
[1748987075019,6.4196,155.67,155.65,6.46638268]
[1748987077621,6.46492653,155.68,155.65,6.46638268]
[1748987077826,0.04562653,155.68,155.65,6.46638268]
[1748987078726,6.4196,155.67,155.65,6.46638268]
[1748987079233,6.46512653,155.68,155.65,6.46638268]
[1748987080235,6.4197,155.67,155.65,0.04628268]
[1748987080530,0.04562653,155.68,155.65,0.04628268]
[1748987081734,6.4199,155.66,155.65,0.04628268]
[1748987081931,0.04562653,155.68,155.65,0.04628268]
[1748987082130,0.04562653,155.68,155.67,6.4195]
[1748987082332,0.04562653,155.68,155.65,0.04628268]
[1748987082731,6.4199,155.66,155.65,0.04628268]
[1748987101161,5.20852204,155.67,155.65,0.04628268]
[1748987101351,0.04562653,155.68,155.65,0.04628268]
[1748987101545,6.4197,155.67,155.65,0.04628268]
[1748987101954,6.46512653,155.68,155.65,6.46638268]
[1748987102254,0.04562653,155.68,155.65,0.04628268]
[1748987102454,5.20966494,155.67,155.65,0.04628268]
[1748987102757,6.4199,155.66,155.65,0.04628268]
[1748987103054,6.4197,155.67,155.65,0.04628268]
[1748987104251,0.04562653,155.68,155.65,6.46628268]
[1748987104555,0.04562653,155.68,155.65,0.04628268]
[1748987105049,6.4198,155.67,155.65,6.46648268]
[1748987105452,6.4198,155.67,155.65,0.04628268]
[1748987106046,6.46502653,155.68,155.65,6.46658268]
[1748987106856,0.04562653,155.68,155.66,6.4199]
[1748987107451,0.04562653,155.68,155.65,0.04628268]
[1748987107657,6.46472653,155.68,155.65,6.46648268]
[1748987108260,6.46472653,155.68,155.66,6.4199]
[1748987108458,0.04562653,155.68,155.66,6.4199]
[1748987109163,6.46472653,155.68,155.65,6.46638268]
[1748987112966,6.4195,155.67,155.65,6.46638268]
[1748987113268,0.04562653,155.68,155.65,6.46638268]
[1748987113565,6.46492653,155.68,155.65,6.46638268]
[1748987114069,0.04562653,155.68,155.65,0.04628268]
[1748987115162,6.4199,155.66,155.65,0.04628268]
[1748987116669,6.4212,155.63,155.61,6.422]
[1748987117172,2.0604,155.67,155.59,33.74]
[1748987117371,35.8004,155.67,155.59,33.74]
[1748987117571,0.04679909,155.65,155.61,0.04209904]
[1748987119068,6.4216,155.62,155.61,0.04209904]
[1748987119373,2.2419,155.64,155.55,33.74]
[1748987119565,6.4227,155.6,155.57,6.4234]
[1748987119966,33.74,155.63,155.57,6.4234]
[1748987120162,0.04697908,155.62,155.58,0.04553952]
[1748987120366,6.4228,155.59,155.58,0.04553952]
[1748987120969,6.4245,155.55,155.53,15.92733884]
[1748987121974,0.04157744,155.56,155.53,15.92733884]
[1748987122568,0.04157744,155.56,155.55,6.4245]
[1748987123967,46.82,155.66,155.55,40.16]
[1748987124168,5.19277485,155.65,155.55,33.74]
[1748987124475,13.08,155.66,155.64,6.4204]
[1748987125077,13.08,155.66,155.63,0.04106946]
[1748987125078,13.08,155.66,155.65,6.4203]
[1748987125469,13.08,155.66,155.63,0.04106946]
[1748987126178,13.08,155.66,155.63,6.46186946]
[1748987126981,19.5,155.66,155.63,6.46186946]
[1748987127576,6.4204,155.65,155.63,0.04106946]
[1748987128079,6.4208,155.64,155.63,0.04106946]
[1748987128885,6.4205,155.65,155.63,0.04106946]
[1748987131287,13.08,155.66,155.63,0.04106946]
[1748987131895,13.08,155.66,155.64,6.4208]
[1748987132395,13.08,155.66,155.63,0.04106946]
[1748987135086,19.5,155.66,155.63,6.46196946]
[1748987136289,19.5,155.66,155.64,6.4207]
[1748987136994,19.5,155.66,155.63,6.46206946]
[1748987137696,19.5,155.66,155.64,6.4207]
[1748987138085,13.08,155.66,155.64,6.4207]
[1748987138696,19.5,155.66,155.63,6.46206946]
[1748987139197,13.08,155.66,155.63,0.04106946]
[1748987140390,13.08,155.66,155.64,6.4208]
[1748987140902,13.08,155.66,155.65,6.4203]
[1748987143699,13.08,155.66,155.64,6.4205]
[1748987144699,19.5,155.66,155.63,6.46206946]
[1748987146601,6.4204,155.65,155.63,0.04106946]
[1748987147200,19.5002,155.66,155.63,6.46216946]
[1748987150696,19.5002,155.66,155.64,6.4207]
[1748987151002,13.08,155.66,155.63,0.04106946]
[1748987151502,13.08,155.66,155.65,6.4203]
[1748987155902,5.83264946,155.78,155.65,6.42]
[1748987156098,2.1629,155.8,155.66,554.8]
[1748987156301,6.414,155.81,155.69,12.8374]
[1748987156494,6.414,155.81,155.77,6.4151]
[1748987156898,6.46022153,155.81,155.77,6.45660555]
[1748987157302,0.04622153,155.81,155.77,0.04150555]
[1748987159007,0.04622153,155.81,155.79,6.4146]
[1748987159198,0.04622153,155.81,155.78,33.68]
[1748987159404,0.04622153,155.81,155.8,6.4142]
[1748987159701,0.04622153,155.81,155.78,33.68]
[1748987159900,0.04622153,155.81,155.78,40.0947]
[1748987162010,6.46002153,155.81,155.78,33.68]
[1748987163504,6.46002153,155.81,155.78,40.0949]
[1748987164706,0.04622153,155.81,155.78,40.0949]
[1748987165209,0.04622153,155.81,155.79,6.4145]
[1748987165409,0.04622153,155.81,155.78,33.68]
[1748987167003,0.04622153,155.81,155.8,6.4142]
[1748987170113,17.72,155.84,155.83,6.4129]
[1748987170499,11.97,155.85,155.82,33.66]
[1748987170698,11.97,155.85,155.82,40.073]
[1748987170900,11.97,155.85,155.82,33.66]
[1748987171109,12.0167965,155.85,155.82,33.70277197]
[1748987171709,12.0167965,155.85,155.83,6.4126]
[1748987174411,12.0167965,155.85,155.83,6.4129]
[1748987174605,12.0167965,155.85,155.82,33.70277197]
[1748987174807,12.0167965,155.85,155.83,6.4129]
[1748987175711,12.0167965,155.85,155.84,6.4125]
[1748987176413,29.75,155.89,155.86,6.4116]
[1748987177717,29.79229664,155.89,155.86,6.45625105]
[1748987178107,36.20289664,155.89,155.86,6.45625105]
[1748987180010,29.79229664,155.89,155.87,6.4112]
[1748987180408,29.79229664,155.89,155.86,0.04465105]
[1748987180614,29.79229664,155.89,155.88,6.4109]
[1748987181017,0.04229664,155.89,155.88,6.4109]
[1748987182715,13.22,155.91,155.9,6.41]
[1748987183107,13.22,155.91,155.9,40.03]
[1748987189822,13.22,155.91,155.89,6.4103]
[1748987190021,17.90119563,155.91,155.89,6.4103]
[1748987190216,13.22,155.91,155.89,6.4103]
[1748987190421,4.68121836,155.9,155.89,6.4103]
[1748987190626,4.68121462,155.9,155.89,6.4103]
[1748987190827,13.22,155.91,155.9,6.41]
[1748987191426,17.9011508,155.91,155.9,6.41]
[1748987191623,13.22,155.91,155.9,6.41]
[1748987192525,17.90127635,155.91,155.9,6.41]
[1748987192723,17.90072615,155.91,155.9,6.41]
[1748987193028,13.22,155.91,155.9,6.41]
[1748987193423,17.90453905,155.91,155.9,6.41]
[1748987193921,17.90396951,155.91,155.9,6.41]
[1748987194117,13.22,155.91,155.9,6.41]
[1748987194920,17.90378634,155.91,155.9,6.41]
[1748987195123,13.22,155.91,155.9,6.41]
[1748987195929,17.90503838,155.91,155.9,6.41]
[1748987196132,13.22,155.91,155.9,6.41]
[1748987196427,17.90495629,155.91,155.9,6.41]
[1748987196633,17.90489635,155.91,155.9,6.41]
[1748987196824,13.22,155.91,155.9,6.41]
[1748987197828,17.90219817,155.91,155.9,6.41]
[1748987198028,13.22,155.91,155.9,6.41]
[1748987199618,17.89759314,155.91,155.9,6.41]
[1748987199823,13.22,155.91,155.9,6.41]
[1748987200622,17.89492602,155.91,155.9,6.41]
[1748987200825,13.22,155.91,155.9,6.41]
[1748987201630,17.8997036,155.91,155.9,6.41]
[1748987201825,13.22,155.91,155.9,6.41]
[1748987202830,17.90033126,155.91,155.9,6.41]
[1748987203032,17.9003272,155.91,155.9,6.41]
[1748987203231,17.90034736,155.91,155.9,6.41]
[1748987203427,17.90168564,155.91,155.9,6.41]
[1748987203731,17.90168602,155.91,155.9,6.41]
[1748987203937,13.22,155.91,155.9,6.41]
[1748987205235,17.90169342,155.91,155.9,6.41]
[1748987205437,17.90166239,155.91,155.9,6.41]
[1748987205638,13.22,155.91,155.9,6.41]
[1748987207138,17.9013495,155.91,155.9,6.41]
[1748987207440,13.22,155.91,155.9,6.41]
[1748987207737,17.9013609,155.91,155.9,6.41]
[1748987207931,13.22,155.91,155.9,6.41]
[1748987208131,17.90129651,155.91,155.9,6.41]
[1748987208333,17.90179351,155.91,155.9,6.41]
[1748987208631,13.22,155.91,155.9,6.41]
[1748987209431,17.90175726,155.91,155.9,6.41]
[1748987210226,13.22,155.91,155.9,6.41]
[1748987210431,17.90178047,155.91,155.9,6.41]
[1748987210837,13.22,155.91,155.9,6.41]
[1748987211932,17.90037929,155.91,155.9,6.41]
[1748987212327,13.22,155.91,155.9,6.41]
[1748987213233,17.90642231,155.91,155.9,6.41]
[1748987213431,13.22,155.91,155.9,6.41]
[1748987214431,13.22,155.91,155.9,39.99]
[1748987215641,17.91438396,155.91,155.9,39.99]
[1748987215836,13.22,155.91,155.9,39.99]
[1748987217038,17.91416406,155.91,155.9,39.99]
[1748987217339,13.22,155.91,155.9,39.99]
[1748987217539,17.91435629,155.91,155.9,39.99]
[1748987217838,13.22,155.91,155.9,39.99]
[1748987218040,17.90976921,155.91,155.9,39.99]
[1748987218236,13.22,155.91,155.9,39.99]
[1748987218442,17.90971455,155.91,155.9,39.99]
[1748987218640,17.89750162,155.91,155.9,39.99]
[1748987218837,13.22,155.91,155.9,39.99]
[1748987219536,17.89756982,155.91,155.9,39.99]
[1748987219738,13.22,155.91,155.9,39.99]
[1748987219933,17.89751135,155.91,155.9,39.99]
[1748987220134,17.89742775,155.91,155.9,39.99]
[1748987220639,13.22,155.91,155.9,39.99]
[1748987221238,17.89569745,155.91,155.9,39.99]
[1748987221444,17.89570908,155.91,155.9,39.99]
[1748987221640,13.22,155.91,155.9,39.99]
[1748987222244,17.90010041,155.91,155.9,39.99]
[1748987222458,13.22,155.91,155.9,6.41]
[1748987222647,17.89974226,155.91,155.9,6.41]
[1748987222944,13.22,155.91,155.9,6.41]
[1748987223542,17.89895829,155.91,155.9,6.41]
[1748987223741,13.22,155.91,155.9,6.41]
[1748987224337,13.22,155.91,155.9,39.99]
[1748987225447,17.89776867,155.91,155.9,39.99]
[1748987225649,13.22,155.91,155.9,39.99]
[1748987226848,17.89850193,155.91,155.9,39.99]
[1748987227248,13.22,155.91,155.9,39.99]
[1748987227551,17.89809053,155.91,155.9,39.99]
[1748987227750,13.22,155.91,155.9,39.99]
[1748987228143,17.89842115,155.91,155.9,39.99]
[1748987228339,0.04500199,155.92,155.91,6.4096]
[1748987228947,4.72466386,155.92,155.91,6.4096]
[1748987229152,4.71391995,155.92,155.91,6.4096]
[1748987229345,0.04500199,155.92,155.91,6.4096]
[1748987229746,4.71514457,155.92,155.91,6.4096]
[1748987229952,0.04500199,155.92,155.91,6.4096]
[1748987230155,4.71414831,155.92,155.91,6.4096]
[1748987230852,4.71414831,155.92,155.9,0.04687673]
[1748987230853,0.04500199,155.92,155.9,0.04687673]
[1748987231252,0.04500199,155.92,155.91,6.4096]
[1748987232253,4.70828378,155.92,155.91,6.4096]
[1748987232446,4.70833311,155.92,155.91,6.4096]
[1748987232646,0.04500199,155.92,155.91,6.4096]
[1748987232848,4.70850709,155.92,155.91,6.4096]
[1748987233051,0.04500199,155.92,155.91,6.4096]
[1748987233554,4.70628064,155.92,155.91,6.4096]
[1748987233756,4.70576423,155.92,155.91,6.4096]
[1748987233954,4.70587896,155.92,155.91,6.4096]
[1748987234350,0.04500199,155.92,155.91,6.4096]
[1748987234551,4.70595524,155.92,155.91,6.4096]
[1748987234748,0.04500199,155.92,155.91,6.4096]
[1748987235146,4.68893909,155.92,155.91,6.4096]
[1748987235353,0.04500199,155.92,155.87,33.58]
[1748987235549,4.64374108,155.91,155.87,33.58]
[1748987235857,4.24560199,155.92,155.87,33.58]
[1748987236256,4.64383305,155.91,155.86,33.54]
[1748987236457,4.24560199,155.92,155.9,6.41]
[1748987237760,4.6378499,155.91,155.9,6.41]
[1748987238067,4.24560199,155.92,155.87,0.04891283]
[1748987238264,6.68569336,155.91,155.87,0.04891283]
[1748987238565,2.048,155.91,155.88,6.4106]
[1748987238769,4.62304613,155.9,155.88,6.4106]
[1748987238964,6.4103,155.9,155.88,6.4106]
[1748987239565,4.6230426,155.89,155.88,6.4106]
[1748987239759,4.62288466,155.89,155.88,6.4107]
[1748987239963,4.62262057,155.89,155.88,6.4107]
[1748987240164,6.41,155.9,155.88,6.4107]
[1748987242661,2.048,155.91,155.87,6.45981283]
[1748987242975,4.61187889,155.9,155.87,6.45981283]
[1748987243168,4.61187889,155.89,155.87,6.45981283]
[1748987243374,4.61185303,155.88,155.87,6.45981283]
[1748987243566,4.61164123,155.88,155.87,6.45981283]
[1748987243768,6.4103,155.9,155.88,6.4108]
[1748987244071,6.4103,155.9,155.87,0.04891283]
[1748987244271,11.02202512,155.89,155.87,6.46001283]
[1748987244576,6.4104,155.89,155.87,6.46001283]
[1748987244875,4.61173376,155.88,155.87,6.46001283]
[1748987245173,6.4104,155.89,155.87,6.46001283]
[1748987245770,4.61169841,155.88,155.87,6.46001283]
[1748987245967,6.4104,155.89,155.87,6.46001283]
[1748987246673,6.4104,155.89,155.87,0.04891283]
[1748987246971,4.61263379,155.88,155.87,0.04891283]
[1748987247170,6.4104,155.89,155.87,0.04891283]
[1748987247367,4.6121065,155.88,155.87,0.04891283]
[1748987247568,6.4104,155.89,155.87,0.04891283]
[1748987247869,4.61230786,155.88,155.87,0.04891283]
[1748987248763,6.4104,155.89,155.87,0.04891283]
[1748987249168,35.608,155.91,155.87,0.04891283]
[1748987249777,6.4107,155.89,155.87,0.04891283]
[1748987250468,4.61242139,155.88,155.87,0.04891283]
[1748987250664,35.608,155.91,155.87,0.04891283]
[1748987251071,6.4108,155.88,155.87,0.04891283]
[1748987251582,11.02038103,155.88,155.87,0.04891283]
[1748987251872,6.4108,155.88,155.87,0.04891283]
[1748987252174,11.02041366,155.88,155.87,0.04891283]
[1748987252381,4.60868989,155.88,155.8,33.56]
[1748987252575,35.608,155.91,155.8,33.56]
[1748987252766,35.608,155.91,155.81,6.4134]
[1748987252970,5.87033416,155.9,155.77,587.4]
[1748987253169,10.47666504,155.89,155.74,33.56]
[1748987253479,0.04669593,155.85,155.74,33.56]
[1748987253680,33.56,155.84,155.74,33.56]
[1748987253875,6.4152,155.78,155.75,6.4159]
[1748987254082,4.59683451,155.77,155.75,6.4159]
[1748987254275,6.45925778,155.78,155.75,6.4159]
[1748987254575,6.4154,155.77,155.75,6.4159]
[1748987254776,4.59668414,155.76,155.75,6.4159]
[1748987254981,6.4154,155.77,155.75,6.4159]
[1748987255280,6.4154,155.77,155.74,6.46541441]
[1748987255281,4.59584738,155.76,155.74,6.46541441]
[1748987255576,6.4154,155.77,155.74,0.04891441]
[1748987255974,4.62067355,155.76,155.74,0.04891441]
[1748987256174,4.62141652,155.75,155.74,6.46531441]
[1748987256483,6.4154,155.77,155.74,6.46531441]
[1748987256676,4.62255161,155.76,155.74,6.46531441]
[1748987256878,4.62419203,155.75,155.74,6.46531441]
[1748987257083,4.62467776,155.75,155.74,6.46531441]
[1748987257277,6.4154,155.77,155.75,6.4162]
[1748987257469,4.6258499,155.76,155.75,6.4162]
[1748987257675,6.4154,155.77,155.75,6.4162]
[1748987258078,4.57402878,155.76,155.75,6.4162]
[1748987258279,6.45915778,155.78,155.75,6.4162]
[1748987258678,4.57211879,155.77,155.75,6.4162]
[1748987258981,6.4154,155.77,155.75,6.4162]
[1748987259184,6.4154,155.77,155.74,6.46551441]
[1748987259480,0.04405778,155.78,155.74,6.46551441]
[1748987259669,10.96383828,155.77,155.74,6.46551441]
[1748987259873,4.54810233,155.76,155.74,6.46551441]
[1748987260070,4.54809441,155.75,155.74,0.04891441]
[1748987260474,6.4159,155.76,155.74,0.04891441]
[1748987260674,4.54825199,155.75,155.74,0.04891441]
[1748987260876,6.4159,155.76,155.74,0.04891441]
[1748987261381,0.04405778,155.78,155.74,6.46551441]
[1748987261781,4.54706362,155.77,155.74,6.46551441]
[1748987261975,4.54708424,155.76,155.74,6.46551441]
[1748987262180,6.4154,155.77,155.74,6.46551441]
[1748987262181,4.54708424,155.75,155.74,6.46551441]
[1748987262485,6.4154,155.77,155.74,6.46551441]
[1748987262685,4.54723321,155.76,155.74,6.46551441]
[1748987262877,4.54703568,155.75,155.74,6.46551441]
[1748987263277,4.53294468,155.75,155.74,0.04891441]
[1748987263474,6.4154,155.77,155.74,0.04891441]
[1748987263685,10.94328105,155.76,155.74,0.04891441]
[1748987263882,4.52748941,155.75,155.74,0.04891441]
[1748987264184,6.4158,155.76,155.74,0.04891441]
[1748987266979,4.52688496,155.75,155.74,0.04891441]
[1748987267480,6.4158,155.76,155.74,0.04891441]
[1748987268687,4.52708563,155.75,155.74,0.04891441]
[1748987268886,6.4158,155.76,155.74,0.04891441]
[1748987269780,4.52570282,155.75,155.74,0.04891441]
[1748987270180,6.4158,155.76,155.74,0.04891441]
[1748987270887,4.52563324,155.75,155.74,0.04891441]
[1748987271088,6.4158,155.76,155.74,0.04891441]
[1748987271985,4.52563324,155.75,155.74,0.04891441]
[1748987272187,6.4158,155.76,155.74,0.04891441]
[1748987273095,4.51384487,155.75,155.74,0.04891441]
[1748987273390,4.51282904,155.75,155.74,0.04891441]
[1748987273694,4.51223262,155.75,155.74,0.04891441]
[1748987273894,4.51254766,155.75,155.74,0.04891441]
[1748987274189,6.4158,155.76,155.74,0.04891441]
[1748987274394,4.51209424,155.75,155.74,0.04891441]
[1748987274694,6.4158,155.76,155.74,0.04891441]
[1748987274883,4.51137227,155.75,155.74,0.04891441]
[1748987275087,4.51726235,155.75,155.74,0.04891441]
[1748987275390,6.4162,155.75,155.74,0.04891441]
[1748987275792,10.94092008,155.75,155.74,0.04891441]
[1748987275992,10.94120693,155.75,155.74,0.04891441]
[1748987276193,6.4162,155.75,155.74,0.04891441]
[1748987276994,10.94122328,155.75,155.74,0.04891441]
[1748987277197,6.4162,155.75,155.74,0.04891441]
[1748987277390,10.94466361,155.75,155.74,0.04891441]